[Event "CCT Julius Baer-D3 2024"]
[Site "Online"]
[Date "2024.09.27"]
[Round "1.2"]
[White "Bharath Subramaniyam H"]
[Black "Guseinov, Gadir"]
[Result "1-0"]
[ECO "B31"]
[WhiteElo "2561"]
[BlackElo "2636"]
[Annotator "TA"]
[PlyCount "165"]
[EventDate "2024.09.25"]
[EventType "swiss"]
[EventCountry "NET"]
[SourceTitle "playchess.com"]
[Source "ChessBase"]
[SourceQuality "1"]
[TimeControl "600+2"]

{[%evp 88,165,53,53,53,53,54,53,56,56,56,54,87,54,56,54,54,53,53,53,53,0,53,53,54,54,54,53,53,53,53,45,46,46,46,46,46,0,46,45,46,0,0,0,0,0,0,0,0,0,0,0,0,0,0,0,0,0,0,0,0,0,0,0,0,0,0,0,0,0,12673,7645,29979,29980,29980,29981,29981,29982,29985,29986]} 1. e4 {[%emt 0:00:03]} c5 {[%emt 0:00:04]} 2. Nf3 {[%emt 0:00:01]} Nc6 {[%emt 0:00:01]} 3. Nc3 {[%emt 0:00:06]} g6 {[%emt 0:00:01]} 4. Bb5 {[%emt 0:00:03]} Nd4 {[%emt 0:00:03]} 5. Bc4 {[%emt 0:00:36]} Bg7 {[%emt 0:00:05]} 6. O-O {[%emt 0:00:01]} d6 {[%emt 0:00:03] B31: Sicilian: 2...Nc6 3 Bb5 g6.} 7. d3 {[%emt 0:00:22]} Nf6 {[%emt 0:01:40]} 8. Nxd4 {[%emt 0:00:10]} cxd4 {[%emt 0:00:02]} 9. Ne2 {[%emt 0:00:09]} d5 {[%emt 0:00:01]} 10. Bb5+ {[%emt 0:00:33]} Bd7 {[%emt 0:00:01]} 11. Bxd7+ {[%emt 0:00:42]} Nxd7 {[%emt 0:00:01]} 12. Bg5 $1 $146 {[%emt 0:01:22][%mdl 8] An important novelty.} ({Predecessor:} 12. f4 dxe4 13. dxe4 Qb6 14. Kh1 Rd8 15. e5 O-O 16. b3 Nc5 17. Ba3 Qa5 18. Bxc5 Qxc5 {1-0 Hakobyan,A (2612)-Yakubboev,N (2630) Speed Chess Q2 Sw blitz 2023 (10)}) 12... dxe4 {[%emt 0:00:44]} 13. dxe4 {[%emt 0:00:00]} Nc5 {[%emt 0:00:01]} 14. Ng3 {[%emt 0:00:29]} Qb6 {[%emt 0:00:45]} 15. Rb1 {[%emt 0:00:33]} h6 {[%emt 0:00:20]} 16. Bd2 {[%emt 0:00:07]} h5 {[%emt 0:00:01]} 17. Re1 {[%emt 0:01:06]} h4 {[%emt 0:01:22]} 18. Nf1 {[%emt 0:00:01]} h3 {[%emt 0:00:01]} 19. g3 {[%emt 0:00:02]} Qc6 {[%emt 0:00:08]} 20. Bb4 {[%emt 0:00:33]} Ne6 {[%emt 0:01:57]} 21. Nd2 {[%emt 0:00:10]} a5 {[%emt 0:00:03]} 22. Ba3 {[%emt 0:00:04]} b5 {[%emt 0:00:00]} 23. b3 {[%emt 0:00:11]} Rc8 {[%emt 0:00:13]} 24. Qe2 {[%emt 0:00:32]} Bh6 {[%emt 0:00:54]} 25. Nf3 {[%emt 0:00:24]} O-O {[%emt 0:01:06]} 26. Bxe7 {[%emt 0:01:33]} Rfe8 {[%emt 0:00:03]} 27. Ba3 {[%emt 0:00:24]} Qxc2 {[%emt 0:00:13]} 28. Qxb5 {[%emt 0:00:02]} d3 {[%emt 0:00:00]} 29. Rb2 {[%emt 0:00:23]} Qc3 {[%emt 0:00:09]} 30. Rd1 {[%emt 0:00:03]} d2 {[%emt 0:00:12]} 31. Qe2 {[%emt 0:00:02]} Nd4 {[%emt 0:00:08]} 32. Nxd4 {[%emt 0:00:02]} Qxd4 {[%emt 0:00:00]} 33. Qg4 {[%emt 0:00:05]} Rc1 {[%emt 0:00:19]} 34. Rbxd2 {[%emt 0:00:05]} Rxd1+ {[%emt 0:00:25]} 35. Rxd1 {[%emt 0:00:00]} Qxe4 {[%emt 0:00:03]} 36. Qxh3 {[%emt 0:00:01]} Bg7 {[%emt 0:00:01]} 37. Qf1 {[%emt 0:00:04]} Qc2 {[%emt 0:00:02]} 38. Bd6 {[%emt 0:00:05]} Qxa2 {[%emt 0:00:04]} 39. Qb5 {[%emt 0:00:00]} Re2 {[%emt 0:00:02]} 40. Rf1 {[%emt 0:00:03]} Bd4 {[%emt 0:00:02]} 41. Bc5 {[%emt 0:00:04]} Bxc5 {[%emt 0:00:02]} 42. Qxc5 {[%emt 0:00:00]} Qxb3 {[%emt 0:00:00]} 43. Qxa5 {[%emt 0:00:02]} Qe6 {[%emt 0:00:01]} 44. Qc5 {[%emt 0:00:01]} Re5 {[%emt 0:00:01]} 45. Qd4 {[%emt 0:00:01]} Re4 {[%emt 0:00:00]} 46. Qd3 {[%emt 0:00:01]} Re5 {[%emt 0:00:01]} 47. h4 {[%emt 0:00:01]} Kg7 {[%emt 0:00:01]} 48. Qc3 {[%emt 0:00:01]} Kh7 {[%emt 0:00:02]} 49. Ra1 {[%emt 0:00:01]} Qf6 {[%emt 0:00:02]} 50. Rc1 {[%emt 0:00:05]} Rf5 {[%emt 0:00:01]} 51. Qd2 {[%emt 0:00:02]} (51. Qxf6 {simplifies} Rxf6 52. Kg2 Kh6 53. g4) 51... Qe6 {[%emt 0:00:03]} 52. Re1 {[%emt 0:00:02]} Re5 {[%emt 0:00:01]} 53. Rxe5 {[%emt 0:00:02]} Qxe5 {[%emt 0:00:00]} 54. Qe3 {[%emt 0:00:01]} (54. Qd1 $14) 54... Qa1+ {[%emt 0:00:03]} (54... Qxe3 $1 $11 55. fxe3 f5) 55. Kg2 $14 {[%emt 0:00:01]} Qa8+ {[%emt 0:00:01]} 56. Qf3 {[%emt 0:00:00]} Qa2 {[%emt 0:00:01]} 57. Qf4 {[%emt 0:00:02]} Qd5+ {[%emt 0:00:01]} 58. Kh2 {[%emt 0:00:01]} Qa2 {[%emt 0:00:01]} 59. g4 {[%emt 0:00:01]} Qd5 {[%emt 0:00:02]} 60. Kg3 {[%emt 0:00:00]} Kg8 {[%emt 0:00:02]} 61. Qb8+ {[%emt 0:00:07]} Kh7 {[%emt 0:00:01]} 62. Qf4 {[%emt 0:00:01]} Kg8 $1 {[%emt 0:00:01]} 63. Qe3 {[%emt 0:00:01]} Qd1 {[%emt 0:00:02]} 64. f4 {[%emt 0:00:01]} (64. Qe8+ $14 {should be considered.} Kg7 65. Qe5+ Kh7 66. h5) 64... Kh7 $11 {[%emt 0:00:04]} 65. Qf3 {[%emt 0:00:03]} Qg1+ {[%emt 0:00:02]} 66. Kh3 {[%emt 0:00:01]} Kg8 {[%emt 0:00:03]} 67. Qa8+ {[%emt 0:00:05]} Kh7 {[%emt 0:00:02]} 68. Qf3 {[%emt 0:00:01]} Kg8 {[%emt 0:00:01]} 69. f5 {[%emt 0:00:02]} gxf5 {[%emt 0:00:02]} 70. gxf5 {[%emt 0:00:00]} Qc1 {[%emt 0:00:13]} 71. Qg4+ {[%emt 0:00:01]} (71. f6 $5 Qh6 $8 72. Qf5 $11) 71... Kf8 {[%emt 0:00:01]} 72. Qb4+ {[%emt 0:00:02]} Kg8 {[%emt 0:00:02]} 73. Qg4+ {[%emt 0:00:03]} Kf8 {[%emt 0:00:01]} 74. Qe4 {[%emt 0:00:05]} Qf1+ {[%emt 0:00:02]} 75. Kg4 {[%emt 0:00:00]} Qd1+ {[%emt 0:00:02]} 76. Qf3 {[%emt 0:00:01]} Qd4+ {[%emt 0:00:02]} 77. Qf4 {[%emt 0:00:00]} Qg7+ {[%emt 0:00:02]} 78. Qg5 {[%emt 0:00:02]} Qa1 $2 {[%emt 0:00:02][%mdl 8192]} (78... f6 $11 79. Qg6 Qe7) 79. Kh5 $18 {[%emt 0:00:04]} Ke8 {[%emt 0:00:03]} 80. f6 {[%emt 0:00:01]} Qa2 {[%emt 0:00:03]} 81. Kh6 {[%emt 0:00:02]} Qe6 {[%emt 0:00:02]} 82. h5 {[%emt 0:00:00]} Kd7 {[%emt 0:00:01]} 83. Kg7 {[%emt 0:00:01]} 1-0

[Event "CCT Julius Baer-D3 2024"]
[Site "Online"]
[Date "2024.09.27"]
[Round "1.2"]
[White "Arm-Akiba"]
[Black "h4parah5"]
[Result "1/2-1/2"]
[ECO "E04"]
[WhiteElo "2541"]
[BlackElo "2663"]
[Annotator "NA"]
[PlyCount "112"]
[EventDate "2024.09.25"]
[EventType "swiss"]
[EventCountry "NET"]
[SourceTitle "playchess.com"]
[Source "ChessBase"]
[SourceQuality "1"]
[TimeControl "600+2"]

1. d4 {[%emt 0:00:03]} Nf6 {[%emt 0:00:04]} 2. c4 {[%emt 0:00:01]} e6 {[%emt 0:00:01]} 3. Nf3 {[%emt 0:00:00]} d5 {[%emt 0:00:01]} 4. g3 {[%emt 0:00:01]} dxc4 {[%emt 0:00:04]} 5. Bg2 {[%emt 0:00:02]} c5 {[%emt 0:00:00]} 6. O-O {[%emt 0:00:02]} Nc6 {[%emt 0:00:00]} 7. Qa4 {[%emt 0:00:04]} Bd7 {[%emt 0:00:02]} 8. Qxc4 {[%emt 0:00:01]} b5 {[%emt 0:00:02]} 9. Qc3 {[%emt 0:00:02]} b4 {[%emt 0:00:01]} 10. Qd3 {[%emt 0:00:02]} Rc8 {[%emt 0:00:03]} 11. Bf4 {[%emt 0:00:14]} cxd4 {[%emt 0:00:09]} 12. Nbd2 {[%emt 0:00:02]} Nd5 {[%emt 0:00:31]} 13. Be5 {[%emt 0:00:07]} Nxe5 {[%emt 0:00:50]} 14. Nxe5 {[%emt 0:00:03]} Be7 {[%emt 0:00:14]} 15. Rfc1 {[%emt 0:00:03]} O-O {[%emt 0:00:04]} 16. Qxd4 {[%emt 0:00:04]} Bb5 {[%emt 0:00:08]} 17. e3 {[%emt 0:00:28]} Qb6 {[%emt 0:00:11]} 18. Nb3 {[%emt 0:00:28]} Bf6 {[%emt 0:00:09]} 19. Bxd5 {[%emt 0:00:17]} exd5 {[%emt 0:00:23]} 20. Rxc8 {[%emt 0:01:08]} Rxc8 {[%emt 0:00:03]} 21. Qxd5 {[%emt 0:00:01]} Be8 {[%emt 0:00:51]} 22. Nd7 {[%emt 0:01:30]} Bxd7 {[%emt 0:00:07]} 23. Qxd7 {[%emt 0:00:02]} Rd8 {[%emt 0:00:04]} 24. Qg4 {[%emt 0:00:18]} Bxb2 {[%emt 0:00:05]} 25. Rd1 {[%emt 0:00:02]} Rxd1+ {[%emt 0:00:06]} 26. Qxd1 {[%emt 0:00:02]} g6 {[%emt 0:00:01]} 27. Qd5 {[%emt 0:00:23]} Bc3 {[%emt 0:00:15]} 28. Na5 {[%emt 0:00:48]} Kg7 {[%emt 0:00:10]} 29. Nc4 {[%emt 0:00:30]} Qe6 {[%emt 0:00:47]} 30. Qxe6 {[%emt 0:00:04]} fxe6 {[%emt 0:00:03]} 31. Kf1 {[%emt 0:00:12]} Kf6 {[%emt 0:00:08]} 32. Ke2 {[%emt 0:00:14]} h5 {[%emt 0:00:41]} 33. Kd3 {[%emt 0:00:33]} a6 {[%emt 0:00:23]} 34. f3 {[%emt 0:00:10]} g5 {[%emt 0:00:04]} 35. g4 {[%emt 0:00:51]} hxg4 {[%emt 0:00:04]} 36. fxg4 {[%emt 0:00:01]} Ke7 {[%emt 0:00:05]} 37. Na5 {[%emt 0:01:07]} Kd6 {[%emt 0:00:18]} 38. Nb3 {[%emt 0:00:02]} Kd5 {[%emt 0:00:18]} 39. h3 {[%emt 0:00:03]} Be1 {[%emt 0:01:27]} 40. Ke2 {[%emt 0:00:04]} Bg3 {[%emt 0:00:17]} 41. Kd3 {[%emt 0:00:04]} Bc7 {[%emt 0:00:06]} 42. Nd2 {[%emt 0:00:49]} a5 {[%emt 0:00:03]} 43. Nf3 {[%emt 0:00:03]} Bd8 {[%emt 0:00:08]} 44. e4+ {[%emt 0:00:01]} Kc5 {[%emt 0:00:06]} 45. Nd4 {[%emt 0:00:01]} Bf6 {[%emt 0:00:50]} 46. e5 {[%emt 0:00:01]} Bxe5 {[%emt 0:00:07]} 47. Nxe6+ {[%emt 0:00:01]} Kd5 {[%emt 0:00:03]} 48. Nxg5 {[%emt 0:00:01]} a4 {[%emt 0:00:00]} 49. Kc2 {[%emt 0:00:11]} Bf6 {[%emt 0:00:18]} 50. Nf3 {[%emt 0:00:03]} Ke4 {[%emt 0:00:01]} 51. Ne1 {[%emt 0:00:05]} b3+ {[%emt 0:00:08]} 52. axb3 {[%emt 0:00:01]} axb3+ {[%emt 0:00:00]} 53. Kxb3 {[%emt 0:00:01]} Kf4 {[%emt 0:00:02]} 54. Kc4 {[%emt 0:00:07]} Kg3 {[%emt 0:00:01]} 55. Kd5 {[%emt 0:00:02]} Kxh3 {[%emt 0:00:01]} 56. Ke6 {[%emt 0:00:01]} Kxg4 {[%emt 0:00:01]} 1/2-1/2

[Event "CCT Julius Baer-D3 2024"]
[Site "Online"]
[Date "2024.09.27"]
[Round "1.3"]
[White "Keymer, Vincent"]
[Black "Hakobyan, Aram"]
[Result "1-0"]
[ECO "A58"]
[WhiteElo "2803"]
[BlackElo "2630"]
[Annotator "TA"]
[PlyCount "51"]
[EventDate "2024.09.25"]
[EventType "swiss"]
[EventCountry "NET"]
[SourceTitle "playchess.com"]
[Source "ChessBase"]
[SourceQuality "1"]
[TimeControl "600+2"]

{[%evp 9,51,24,37,25,31,31,51,29,24,0,0,-6,51,33,134,138,116,93,133,131,241,232,239,244,213,223,216,137,182,165,183,131,338,208,660,377,356,352,1643,1160,29983,29984,29982,29983]} 1. d4 {[%emt 0:00:04][%cal Bd2d4,Bd4d5][%mdl 32]} Nf6 {[%emt 0:00:12]} 2. c4 {[%emt 0:00:02]} c5 {[%emt 0:00:00]} 3. d5 {[%emt 0:00:05]} b5 {[%emt 0:00:02]} 4. cxb5 {[%emt 0:00:01]} a6 {[%emt 0:00:01]} 5. bxa6 {[%emt 0:00:00]} e6 {[%emt 0:00:03]} 6. Nc3 {[%emt 0:00:06]} exd5 {[%emt 0:00:02]} 7. Nxd5 {[%emt 0:00:09][%cal Oe2e4]} Nxa6 {[%emt 0:00:02]} 8. Nxf6+ {[%emt 0:00:43] White is slightly better.} Qxf6 {[%emt 0:00:01]} 9. Nf3 {[%emt 0:00:00]} Nb4 {[%emt 0:00:04]} 10. e4 {[%emt 0:00:33] Prevents Qf5} Qg6 {[%emt 0:00:02]} (10... Rxa2 $11 11. Rxa2 Nxa2) 11. Be2 $1 $14 {[%emt 0:00:16]} Qxg2 {[%emt 0:00:23]} ({Better is} 11... Be7 $14) 12. Rg1 $16 {[%emt 0:00:02]} Qh3 {[%emt 0:00:00][%cal Oc8a6]} 13. a3 {[%emt 0:00:39] Black must now prevent Bf4.} Nc6 {[%emt 0:01:27]} 14. Bc4 {[%emt 0:00:05][%cal Oc4f7] [#] Inhibits Qe6. And now Bxf7+! would win.} Be7 {[%emt 0:02:30]} (14... h6 $16 {is a better defense.} 15. Bd2 Rh7) 15. Rxg7 $18 {[%emt 0:00:08]} Ba6 {[%emt 0:00:09]} 16. Rg3 {[%emt 0:00:41]} (16. Bxf7+ $2 {is the wrong capture.} Kf8 17. Rg1 Kxf7 18. Qd5+ Ke8 $19) 16... Qh5 {[%emt 0:00:08]} 17. Bxa6 {[%emt 0:00:13]} Rxa6 {[%emt 0:00:00]} 18. Bd2 {[%emt 0:00:52][%cal Bc1d2,Bd2c3,Bc3d4][%mdl 32] Qe2 would now be deadly.} f5 {[%emt 0:01:24]} 19. Bc3 {[%emt 0:00:13]} Rf8 {[%emt 0:00:01] [#]} 20. Qd5 {[%emt 0:00:20]} (20. Qd3 $1 $18 {[%cal Rd3a6]} Ra7 21. e5) 20... Ra4 {[%emt 0:01:26] Black cannot hold the game after this.} (20... Nd8 $16 {might work better.}) 21. O-O-O $40 {[%emt 0:00:11][%mdl 128] White attacks with force.} Nd4 $2 {[%emt 0:01:14]} (21... Qh6+ 22. Kb1 Qe6) 22. Nxd4 {[%emt 0:00:23]} cxd4 {[%emt 0:00:05]} 23. Bxd4 {[%emt 0:00:14]} Qe2 {[%emt 0:00:37]} (23... Qh6+ 24. Kc2 (24. Kb1 Qe6 $18) 24... Qe6 25. Qxe6 dxe6) 24. Rc3 {[%emt 0:00:33] Rc8+ would kill now.} Bg5+ {[%emt 0:00:17]} 25. Be3 {[%emt 0:00:01]} Bxe3+ {[%emt 0:00:02]} 26. fxe3 {[%emt 0:00:01] Weighted Error Value: White=0.54/Black=0.88.  Loses game:     	---       	Black=1      Mistake:       	White=1     	Black=5      Inaccurate:     	White=4     	Black=3      OK:         	White=5     	Black=6      Best:        	White=3     	---        Strong:       	White=1     	---} 1-0

[Event "CCT Julius Baer-D3 2024"]
[Site "Online"]
[Date "2024.09.27"]
[Round "1.3"]
[White "Niemann, Hans Moke"]
[Black "Sarana, Alexey"]
[Result "1/2-1/2"]
[ECO "E04"]
[WhiteElo "2707"]
[BlackElo "2671"]
[Annotator "TA"]
[PlyCount "75"]
[EventDate "2024.09.25"]
[EventType "swiss"]
[EventCountry "NET"]
[SourceTitle "playchess.com"]
[Source "ChessBase"]
[SourceQuality "1"]
[TimeControl "600+2"]

{[%evp 11,75,0,3,0,0,0,0,0,2,-26,-22,-27,16,-3,0,0,0,0,0,-81,-31,-92,-81,-81,-72,-47,-36,-36,-19,-16,-18,-17,14,13,5,8,23,6,5,10,8,0,0,0,12,0,0,0,0,0,0,0,70,-11,0,-8,-10,-23,-34,-25,-26,-48,-47,-58,-47,-47]} 1. d4 {[%emt 0:00:04]} Nf6 {[%emt 0:00:04]} 2. c4 {[%emt 0:00:01]} e6 {[%emt 0:00:00]} 3. Nf3 {[%emt 0:00:01]} d5 {[%emt 0:00:01]} 4. g3 {[%emt 0:00:01]} dxc4 {[%emt 0:00:09]} 5. Bg2 {[%emt 0:01:21]} Nc6 {[%emt 0:00:02]} 6. O-O {[%emt 0:00:10]} Rb8 {[%emt 0:00:03]} 7. Be3 {[%emt 0:00:10]} Nd5 {[%emt 0:00:31]} 8. Qc1 {[%emt 0:00:04]} Nxe3 {[%emt 0:00:11]} 9. Qxe3 {[%emt 0:00:06] Die Stellung ist ausgeglichen.} Be7 {[%emt 0:00:12]} 10. Nc3 {[%emt 0:00:06]} O-O {[%emt 0:00:03]} 11. Rad1 {[%emt 0:00:04]} Nb4 {[%emt 0:00:03] [#]} 12. d5 $1 {[%emt 0:00:17]} exd5 {[%emt 0:00:18]} 13. a3 $1 {[%emt 0:00:02]} Nc6 {[%emt 0:00:01]} ({Ein No Go ist} 13... Nc2 $6 14. Qc1 d4 (14... Bf5 $2 15. Rxd5 Qc8 16. e4 $18) 15. Qxc2 $16) 14. Nxd5 {[%emt 0:00:27]} Bd6 {[%emt 0:00:01]} 15. Nd4 {[%emt 0:00:47]} (15. h4 $11) 15... Re8 {[%emt 0:00:23]} (15... a6 $17) 16. Qf3 {[%emt 0:00:38]} ({Besser ist} 16. Qd2 $15) 16... Nxd4 $17 {[%emt 0:00:47]} 17. Rxd4 {[%emt 0:00:00]} Be5 {[%emt 0:00:01]} 18. Rxc4 {[%emt 0:00:06]} Be6 {[%emt 0:00:28][%cal Oc7c6] Droht stark ...c6!} ({Viel schwächer wäre} 18... Bxb2 $6 19. Nxc7 Re5 20. a4 $14) 19. Rc2 {[%emt 0:00:03]} c6 {[%emt 0:00:07]} 20. Nf4 {[%emt 0:00:07]} Bf5 {[%emt 0:00:10] Ein starkes Läuferpaar.} 21. e4 {[%emt 0:00:06]} Be6 {[%emt 0:00:54]} 22. Rd1 {[%emt 0:00:13]} Qf6 {[%emt 0:00:07]} 23. Nxe6 {[%emt 0:00:01]} fxe6 {[%emt 0:00:59]} 24. Qxf6 {[%emt 0:00:17]} Bxf6 {[%emt 0:00:02]} 25. Bh3 {[%emt 0:00:19]} Kf7 {[%emt 0:00:11]} 26. Rd7+ {[%emt 0:00:02]} Re7 {[%emt 0:00:02]} 27. Rcd2 {[%emt 0:00:01]} Rbe8 {[%emt 0:00:18]} 28. R7d6 {[%emt 0:00:33]} Be5 {[%emt 0:00:05]} 29. R6d3 {[%emt 0:00:20]} g5 {[%emt 0:00:09]} 30. b4 {[%emt 0:00:06]} Rc8 {[%emt 0:00:05]} 31. Bg4 {[%emt 0:00:10][%cal Of2f4]} b6 {[%emt 0:00:18]} ({Vorzuziehen ist} 31... c5 $11) 32. Bh5+ {[%emt 0:00:12]} (32. f4 $14 gxf4 33. gxf4) 32... Kg7 {[%emt 0:00:01]} 33. Rd7 {[%emt 0:00:02]} Kf6 {[%emt 0:00:05]} 34. R2d3 {[%emt 0:00:08] [#] Und Rf3+ würde nun gewinnen.} Rxd7 {[%emt 0:00:19]} 35. Rxd7 {[%emt 0:00:03][%csl Gh5][%cal Rd7f7]} Rc7 {[%emt 0:00:00]} 36. Rxc7 {[%emt 0:00:54]} Bxc7 {[%emt 0:00:00]} 37. Be8 {[%emt 0:00:01]} c5 {[%emt 0:00:02]} 38. bxc5 {[%emt 0:00:03] Gewichteter Fehlerwert: Weiß=0.17 (sehr präzise) /Schwarz=0.12 (sehr präzise) .  Fehler:       	Weiß=3     	Schwarz=2     Ungenau:       	Weiß=1     	Schwarz=2     OK:         	Weiß=11    	Schwarz=13    Bester:       	---       	Schwarz=2     Stark:        	Weiß=1     	---} 1/2-1/2

[Event "CCT Julius Baer-D3 2024"]
[Site "Online"]
[Date "2024.09.27"]
[Round "1.3"]
[White "Navara, David"]
[Black "Amin, Bassem"]
[Result "0-1"]
[ECO "E94"]
[WhiteElo "2681"]
[BlackElo "2636"]
[Annotator "RC"]
[PlyCount "110"]
[EventDate "2024.09.25"]
[EventType "swiss"]
[EventCountry "NET"]
[SourceTitle "playchess.com"]
[Source "ChessBase"]
[SourceQuality "1"]
[TimeControl "600+2"]

1. d4 {[%emt 0:00:03]} Nf6 {[%emt 0:00:05]} 2. c4 {[%emt 0:00:02]} g6 {[%emt 0:00:01]} 3. Nc3 {[%emt 0:00:04]} Bg7 {[%emt 0:00:01]} 4. e4 {[%emt 0:00:01]} d6 {[%emt 0:00:00]} 5. Nf3 {[%emt 0:00:02]} O-O {[%emt 0:00:01]} 6. Be2 {[%emt 0:00:00]} e5 {[%emt 0:00:04]} 7. O-O {[%emt 0:00:02]} Nbd7 {[%emt 0:00:21]} 8. Be3 {[%emt 0:00:09]} Qe7 {[%emt 0:00:07]} 9. Qc2 {[%emt 0:00:17]} c6 {[%emt 0:00:07]} 10. d5 {[%emt 0:00:06]} c5 {[%emt 0:00:05]} 11. Bg5 {[%emt 0:00:09]} h6 {[%emt 0:00:03]} 12. Bd2 {[%emt 0:00:01]} Nh5 {[%emt 0:00:26]} 13. g3 {[%emt 0:00:04]} Ndf6 {[%emt 0:00:11]} 14. Kh1 {[%emt 0:00:41]} Ng4 {[%emt 0:01:37]} 15. Nh4 {[%emt 0:00:17]} Nf4 {[%emt 0:00:10]} 16. Bd1 {[%emt 0:01:18]} Nh3 {[%emt 0:00:13]} 17. Bc1 {[%emt 0:00:22]} Bf6 {[%emt 0:01:12]} 18. Ng2 {[%emt 0:00:25]} Bg5 {[%emt 0:00:51]} 19. f4 {[%emt 0:01:17]} exf4 {[%emt 0:00:03]} 20. gxf4 {[%emt 0:00:00]} Bh4 {[%emt 0:00:02]} 21. Bxg4 {[%emt 0:01:25]} Bxg4 {[%emt 0:00:00]} 22. Nxh4 {[%emt 0:01:04]} Qxh4 {[%emt 0:00:00]} 23. Qg2 {[%emt 0:00:08]} Rae8 {[%emt 0:01:04]} 24. Bd2 {[%emt 0:00:16]} f5 {[%emt 0:00:13]} 25. Rae1 {[%emt 0:00:05]} fxe4 {[%emt 0:01:45]} 26. Nxe4 {[%emt 0:00:00]} Nxf4 {[%emt 0:00:01]} 27. Bxf4 {[%emt 0:00:35]} Rxf4 {[%emt 0:00:00]} 28. Nf6+ {[%emt 0:00:01]} Qxf6 {[%emt 0:00:01]} 29. Rxe8+ {[%emt 0:00:02]} Kf7 {[%emt 0:00:00]} 30. Ree1 {[%emt 0:01:15]} Bf3 {[%emt 0:00:07]} 31. Rxf3 {[%emt 0:00:01]} Rxf3 {[%emt 0:00:00]} 32. Qe2 {[%emt 0:00:03]} h5 {[%emt 0:01:05]} 33. Qe8+ {[%emt 0:00:16]} Kg7 {[%emt 0:00:01]} 34. Qe7+ {[%emt 0:00:01]} Qf7 {[%emt 0:00:13]} 35. Re6 {[%emt 0:00:27]} Rf6 {[%emt 0:00:30]} 36. Re3 {[%emt 0:00:10]} Rf1+ {[%emt 0:00:14]} 37. Kg2 {[%emt 0:00:01]} Rf2+ {[%emt 0:00:00]} 38. Kg1 {[%emt 0:00:03]} Rxb2 {[%emt 0:00:04]} 39. Qxf7+ {[%emt 0:00:04]} Kxf7 {[%emt 0:00:01]} 40. Re6 {[%emt 0:00:00]} Rb6 {[%emt 0:00:16]} 41. Kg2 {[%emt 0:00:03]} Ra6 {[%emt 0:00:00]} 42. Kg3 {[%emt 0:00:01]} g5 {[%emt 0:00:03]} 43. Kf3 {[%emt 0:00:05]} Rxa2 {[%emt 0:00:03]} 44. Rxd6 {[%emt 0:00:01]} Rxh2 {[%emt 0:00:02]} 45. Ke4 {[%emt 0:00:02]} Rf2 {[%emt 0:00:02]} 46. Ke5 {[%emt 0:00:02]} h4 {[%emt 0:00:02]} 47. Rd7+ {[%emt 0:00:01]} Kg6 {[%emt 0:00:01]} 48. Rxb7 {[%emt 0:00:00]} h3 {[%emt 0:00:00]} 49. d6 {[%emt 0:00:03]} h2 {[%emt 0:00:04]} 50. Rb1 {[%emt 0:00:00]} g4 {[%emt 0:00:01]} 51. d7 {[%emt 0:00:01]} Rd2 {[%emt 0:00:01]} 52. Kf4 {[%emt 0:00:00]} Rxd7 {[%emt 0:00:03]} 53. Kxg4 {[%emt 0:00:04]} Rd2 {[%emt 0:00:02]} 54. Kg3 {[%emt 0:00:03]} Kf5 {[%emt 0:00:01]} 55. Re1 {[%emt 0:00:03]} a5 {[%emt 0:00:01]} 0-1